fUSD/lending_fUSD_20240409
["ID","MTS","AMOUNT","RATE_DAILY","PERIOD"]
[321980408,1712671836265,-720.0,0.00020107,2]
[321980409,1712671836276,-500.0,0.00020108,2]
[321980410,1712671836285,-500.0,0.00020108,2]
[321980411,1712671836295,-500.0,0.00020108,2]
[321980412,1712671836304,-885.87,0.00020108,2]
[321980413,1712671836313,-500.0,0.00020108,2]
[321980414,1712671836325,-500.0,0.00020108,2]
[321980415,1712671836334,-500.0,0.00020108,2]
[321980416,1712671836343,-500.0,0.00020108,2]
[321980417,1712671836353,-500.0,0.00020108,2]
[321980418,1712671836363,-500.0,0.00020108,2]
[321980419,1712671836372,-500.0,0.00020108,2]
[321980420,1712671836381,-500.0,0.00020108,2]
[321980421,1712671836391,-500.0,0.00020108,2]
[321980422,1712671836400,-500.0,0.00020108,2]
[321980423,1712671836409,-500.0,0.00020108,2]
[321980424,1712671836419,-507.48859874,0.00020108,2]
[321980425,1712671836428,-500.0,0.00020108,2]
[321980426,1712671836437,-508.34568257,0.00020108,2]
[321980427,1712671836446,-1947.54,0.00020108,2]
[321980428,1712671836456,-515.14,0.00020108,2]
[321980429,1712671836467,-500.0,0.00020108,2]
[321980430,1712671836476,-500.0,0.00020108,2]
[321980431,1712671836485,-1405.61,0.00020108,2]
[321980432,1712671836494,-3356.06,0.00020108,2]
[321980433,1712671836503,-1957.74,0.00020108,2]
[321980434,1712671836512,-7814.07,0.00020108,2]
[321980435,1712671836521,-3300.61,0.00020108,2]
[321980436,1712671836530,-500.0,0.00020108,2]
[321980437,1712671836539,-3579.28,0.00020108,2]
[321980438,1712671836550,-14075.68,0.00020108,2]
[321980439,1712671836559,-41852.45,0.00020108,2]
[321980440,1712671836569,-510.58176654,0.00020108,2]
[321980441,1712671836578,-1783.96,0.00020108,2]
[321980442,1712671836587,-2414.72,0.00020108,2]
[321980443,1712671836596,-538.95707121,0.00020108,2]
[321980444,1712671836606,-3178.56093221,0.00020108,2]
[321980445,1712671836615,-1814.78,0.00020108,2]
[321980446,1712671836625,-500.0,0.00020108,2]
[321980447,1712671836635,-3773.23,0.00020108,2]
[321980448,1712671836645,-500.0,0.00020108,2]
[321980449,1712671836654,-1082.68882243,0.00020109,2]
[321980450,1712671836665,-173.70619217,0.00020109,2]
[321980451,1712671836675,-7500.0,0.00020109,2]
[321980452,1712671836685,-2978.94256916,0.00020127,2]
[321980453,1712671836694,-160.04141335,0.00020157,2]
[321980454,1712671836706,-155.0,0.00020186,2]
[321980455,1712671836716,-630.2,0.00020196,2]
[321980456,1712671836725,-4718.36355901,0.00020205,2]
[321980457,1712671836734,-208.07346095,0.00020206,2]
[321980458,1712671836743,-236.18996574,0.00020206,2]
[321980459,1712671836754,-3793.28801808,0.00020206,2]
[321980460,1712671836764,-6311.21532001,0.00020207,2]
[321980461,1712671836774,-292.09152197,0.00020207,2]
[321980462,1712671836784,-127056.11682609,0.00020208,2]
[321980463,1712671837395,-4835.2955,0.00020208,2]
[321980464,1712671837408,-5279.3367152,0.00020208,2]
[321980466,1712671837429,-331.62383114,0.00020208,2]
[321980467,1712671837441,-35071.03000001,0.00020208,2]
[321980468,1712671837454,-735.1671786,0.00020208,2]
[321980469,1712671837466,-81875.02165,0.00020208,2]
[321980489,1712671838437,-69977.25203886,0.00020208,2]
[321980490,1712671838465,-686.6,0.00020107,2]
[321980491,1712671838475,-9393.64826017,0.00020208,2]
[321980492,1712671838485,-152.71140106,0.00020208,2]
[321980493,1712671838495,-2793.25,0.00020208,2]
[321980494,1712671838506,-1442.86,0.00020208,2]
[321980495,1712671838516,-500.0,0.00020208,2]
[321980496,1712671838526,-2568.08,0.00020208,2]
[321980497,1712671838536,-3415.19,0.00020208,2]
[321980498,1712671838546,-2978.94256916,0.00020208,2]
[321980499,1712671838556,-4497.06,0.00020208,2]
[321980500,1712671838566,-1132.55,0.00020208,2]
[321980501,1712671838575,-1809.81,0.00020208,2]
[321980502,1712671838586,-7449.54,0.00020208,2]
[321980503,1712671838596,-11896.33,0.00020208,2]
[321980504,1712671838605,-2464.31,0.00020208,2]
[321980505,1712671838615,-2618.22,0.00020208,2]
[321980506,1712671838625,-2036.98,0.00020208,2]
[321980507,1712671838635,-5135.46,0.00020208,2]
[321980508,1712671838645,-3256.25,0.00020208,2]
[321980509,1712671838655,-500.0,0.00020208,2]
[321980510,1712671838665,-2301.94,0.00020208,2]
[321980511,1712671838675,-3398.94,0.00020208,2]
[321980512,1712671838685,-2551.09,0.00020208,2]
[321980513,1712671838696,-3363.81,0.00020208,2]
[321980514,1712671838705,-6164.15734201,0.00020208,2]
[321980515,1712671838752,-1650.6413248,0.00020208,2]
[321980516,1712671838765,-140.45133319,0.00020208,2]
[321980517,1712671838775,-71955.54866851,0.00020209,2]
[321980518,1712671838788,-6055.9025272,0.00020209,2]
[321980519,1712671838801,-1479.4257306,0.00020209,2]
[321980520,1712671838813,-639.84087267,0.00020209,2]
[321980521,1712671838824,-18268.08984003,0.00020209,2]
[321980522,1712671838837,-1601.19236099,0.00020209,2]
[321980523,1712671838848,-68597.40557268,0.00020209,2]
[321980524,1712671838865,-5540.12743888,0.00020209,2]
[321980539,1712671840210,-500.0,0.00020107,2]
[321980541,1712671840220,-2643.45391888,0.00020209,2]
[321980543,1712671840233,-69548.249999,0.00020209,2]
[321980546,1712671840245,-14063.2561716,0.00020209,2]
[321980551,1712671840273,-46668.47249896,0.00020209,2]
[321980553,1712671840282,-325.84537089,0.00020215,2]
[321980555,1712671840293,-500.0,0.0002022,2]
[321980556,1712671840303,-1082.68882242,0.00020222,2]
[321980558,1712671840312,-40719.11854938,0.00020266,2]
[321980560,1712671840322,-1891.92,0.00020273,2]
[321980563,1712671840332,-3240.2,0.00020273,2]
[321980565,1712671840341,-2910.15,0.00020273,2]
[321980567,1712671840351,-2630.5,0.00020273,2]
[321980569,1712671840361,-953.42,0.00020273,2]
[321980571,1712671840371,-1258.27,0.00020273,2]
[321980573,1712671840380,-3661.63,0.00020273,2]
[321980575,1712671840390,-7209.17,0.00020273,2]
[321980577,1712671840399,-2717.21,0.00020273,2]
[321980579,1712671840409,-3407.59,0.00020273,2]
[321980581,1712671840419,-1766.34,0.00020273,2]
[321980583,1712671840428,-1310.67475836,0.00020273,2]
[321980585,1712671840441,-1400.43199964,0.00020273,2]
[321980587,1712671840453,-1295.943242,0.00020273,2]
[321980589,1712671840464,-2594.67695457,0.00020273,2]
[321980591,1712671840476,-2942.35304543,0.00020273,2]
[321980593,1712671840486,-2014.96,0.00020273,2]
[321980595,1712671840496,-5305.5,0.00020273,2]
[321980597,1712671840506,-2647.1,0.00020273,2]
[321980599,1712671840515,-4475.85,0.00020273,2]
[321980601,1712671840526,-2735.42,0.00020273,2]
[321980603,1712671840536,-2329.98,0.00020273,2]
[321980605,1712671840546,-2229.87,0.00020273,2]
[321980607,1712671840556,-428.48839516,0.00020273,2]
[321980609,1712671840568,-559.008,0.00020273,2]
[321980613,1712671840599,-2918.68814548,0.00020273,2]
[321980631,1712671840833,-3639.49545936,0.00020273,2]
[321980632,1712671840843,-4570.5,0.00020273,2]
[321980633,1712671840853,-5980.17,0.00020273,2]
[321980634,1712671840863,-2919.39465497,0.00020288,2]
[321980635,1712671840874,-160.04141335,0.00020305,2]
[321980636,1712671840884,-550.75005717,0.00020307,2]
[321980637,1712671840895,-408.15974753,0.00020307,2]
[321980638,1712671840906,-500.0,0.00020307,2]
[321980639,1712671840915,-1228.87,0.00020308,2]
[321980640,1712671840926,-1014.11,0.00020308,2]
[321980641,1712671840936,-500.0,0.00020308,2]
[321980642,1712671840948,-500.0,0.00020308,2]
[321980643,1712671840958,-674.05,0.00020308,2]
[321980644,1712671840970,-1002.88,0.00020308,2]
[321980645,1712671840981,-1108.76,0.00020308,2]
[321980646,1712671840991,-500.0,0.00020308,2]
[321980647,1712671841002,-734.75,0.00020308,2]
[321980649,1712671841013,-500.0,0.00020308,2]
[321980651,1712671841023,-500.0,0.00020308,2]
[321980653,1712671841033,-500.0,0.00020308,2]
[321980655,1712671841042,-595.7,0.00020308,2]
[321980657,1712671841052,-500.0,0.00020308,2]
[321980659,1712671841062,-500.0,0.00020308,2]
[321980661,1712671841072,-671.63,0.00020308,2]
[321980663,1712671841081,-792.85,0.00020308,2]
[321980665,1712671841091,-500.0,0.00020308,2]
[321980668,1712671841102,-500.0,0.00020308,2]
[321980670,1712671841111,-694.53,0.00020308,2]
[321980672,1712671841120,-843.65,0.00020308,2]
[321980674,1712671841130,-500.0,0.00020308,2]
[321980676,1712671841140,-500.0,0.00020308,2]
[321980678,1712671841150,-1058.65,0.00020308,2]
[321980680,1712671841162,-500.0,0.00020308,2]
[321980682,1712671841173,-500.0,0.00020308,2]
[321980684,1712671841183,-1396.36,0.00020308,2]
[321980686,1712671841195,-1084.43,0.00020308,2]
[321980688,1712671841204,-1788.79,0.00020308,2]
[321980690,1712671841214,-526.97,0.00020308,2]
[321980692,1712671841224,-605.05,0.00020308,2]
[321980694,1712671841234,-549.76,0.00020308,2]
[321980696,1712671841243,-936.62866762,0.00020308,2]
[321980698,1712671841261,-416.70133238,0.00020308,2]
[321980700,1712671841271,-500.0,0.00020308,2]
[321980702,1712671841280,-500.0,0.00020308,2]
[321980703,1712671841289,-1015.66,0.00020308,2]
[321980704,1712671841298,-500.0,0.00020308,2]
[321980705,1712671841308,-1233.96,0.00020308,2]
[321980706,1712671841317,-979.06,0.00020308,2]
[321980707,1712671841326,-1159.59,0.00020308,2]
[321980708,1712671841336,-841.21,0.00020308,2]
[321980709,1712671841346,-1151.96,0.00020308,2]
[321980710,1712671841356,-974.0,0.00020308,2]
[321980711,1712671841365,-500.0,0.00020308,2]
[321980712,1712671841374,-1426.63,0.00020308,2]
[321980713,1712671841383,-1790.29,0.00020308,2]
[321980714,1712671841393,-500.0,0.00020308,2]
[321980715,1712671841402,-500.0,0.00020308,2]
[321980716,1712671841412,-500.0,0.00020308,2]
[321980717,1712671841421,-500.0,0.00020308,2]
[321980718,1712671841431,-500.0,0.00020308,2]
[321980719,1712671841440,-500.0,0.00020308,2]
[321980720,1712671841449,-906.15,0.00020308,2]
[321980721,1712671841459,-3497.21,0.00020308,2]
[321980722,1712671841469,-667.23,0.00020308,2]
[321980723,1712671841479,-6443.34,0.00020308,2]
[321980724,1712671841488,-875.52,0.00020308,2]
[321980725,1712671841497,-7613.47,0.00020308,2]
[321980726,1712671841506,-1465.75,0.00020308,2]
[321980727,1712671841517,-2354.84,0.00020308,2]
[321980728,1712671841526,-500.0,0.00020308,2]
[321980729,1712671841538,-951.16,0.00020308,2]
[321980730,1712671841548,-500.0,0.00020308,2]
[321980731,1712671841559,-500.0,0.00020308,2]
[321980732,1712671841569,-1433.11,0.00020308,2]
[321980733,1712671841579,-500.0,0.00020308,2]
[321980734,1712671841589,-901.1,0.00020308,2]
[321980735,1712671841598,-2943.17,0.00020308,2]
[321980736,1712671841609,-501.49,0.00020308,2]
[321980737,1712671841620,-1841.45,0.00020308,2]
[321980738,1712671841630,-683.01,0.00020308,2]
[321980739,1712671841641,-4283.99,0.00020308,2]
[321980740,1712671841652,-758.85,0.00020308,2]
[321980741,1712671841662,-500.0,0.00020308,2]
[321980742,1712671841672,-603.8,0.00020308,2]
[321980743,1712671841682,-1637.28,0.00020308,2]
[321980744,1712671841693,-3983.79,0.00020308,2]
[321980745,1712671841703,-1115.03,0.00020308,2]
[321980746,1712671841714,-500.0,0.00020308,2]
[321980747,1712671841725,-2108.54,0.00020308,2]
[321980748,1712671841735,-500.0,0.00020308,2]
[321980749,1712671841745,-687.42,0.00020308,2]
[321980750,1712671841755,-1379.38,0.00020308,2]
[321980751,1712671841765,-500.0,0.00020308,2]
[321980752,1712671841776,-1019.12,0.00020308,2]
[321980753,1712671841786,-658.28,0.00020308,2]
[321980754,1712671841795,-2250.32,0.00020308,2]
[321980755,1712671841806,-822.34,0.00020308,2]
[321980756,1712671841815,-1458.42,0.00020308,2]
[321980757,1712671841825,-734.83,0.00020308,2]
[321980758,1712671841834,-2525.54,0.00020308,2]
[321980759,1712671841844,-846.34,0.00020308,2]
[321980760,1712671841853,-649.51,0.00020308,2]
[321980761,1712671841863,-2884.77,0.00020308,2]
[321980762,1712671841873,-1477.3,0.00020308,2]
[321980763,1712671841883,-841.88,0.00020308,2]
[321980764,1712671841893,-2895.36,0.00020308,2]
[321980765,1712671841903,-1287.46,0.00020308,2]
[321980766,1712671841914,-602.88,0.00020308,2]
[321980767,1712671841924,-2867.28,0.00020308,2]
[321980768,1712671841934,-500.0,0.00020308,2]
[321980769,1712671841944,-500.0,0.00020308,2]
[321980770,1712671841953,-4612.14,0.00020308,2]
[321980771,1712671841965,-1449.2,0.00020308,2]
[321980772,1712671841980,-35565.97,0.00020308,2]
[321980773,1712671841990,-1262.06,0.00020308,2]
[321980774,1712671842000,-500.0,0.00020309,2]
[321980775,1712671842011,-500.0,0.00020309,2]
[321980776,1712671842021,-500.0,0.00020309,2]
[321980777,1712671842032,-500.0,0.00020309,2]
[321980778,1712671842042,-500.0,0.00020309,2]
[321980779,1712671842052,-500.0,0.00020309,2]
[321980780,1712671842062,-657.91,0.00020309,2]
[321980781,1712671842071,-500.0,0.00020309,2]
[321980782,1712671842080,-500.0,0.00020309,2]
[321980783,1712671842089,-538.95327833,0.00020309,2]
[321980784,1712671842098,-500.0,0.00020309,2]
[321980785,1712671842108,-500.0,0.00020309,2]
[321980786,1712671842118,-500.0,0.00020309,2]
[321980787,1712671842127,-500.0,0.00020309,2]
[321980788,1712671842137,-500.0,0.00020309,2]
[321980789,1712671842147,-500.0,0.00020309,2]
[321980790,1712671842156,-500.0,0.00020309,2]
[321980791,1712671842167,-500.0,0.00020309,2]
[321980792,1712671842178,-500.0,0.00020309,2]
[321980793,1712671842191,-500.0,0.00020309,2]
[321980794,1712671842200,-500.0,0.00020309,2]
[321980795,1712671842210,-500.0,0.00020309,2]
[321980796,1712671842223,-473.04821749,0.00020309,2]
[321980797,1712671842233,-500.0,0.00020309,2]
[321980798,1712671842243,-511.55,0.00020309,2]
[321980799,1712671842253,-500.0,0.00020309,2]
[321980800,1712671842263,-597.79,0.00020309,2]
[321980801,1712671842272,-500.0,0.00020309,2]
[321980802,1712671842282,-500.0,0.00020309,2]
[321980803,1712671842292,-500.0,0.00020309,2]
[321980804,1712671842303,-500.0,0.00020309,2]
[321980805,1712671842312,-500.0,0.00020309,2]
[321980806,1712671842322,-500.0,0.00020309,2]
[321980807,1712671842331,-493.65711765,0.00020309,2]
[321980808,1712671842341,-500.0,0.00020309,2]
[321980809,1712671842351,-500.0,0.00020309,2]
[321980810,1712671842360,-1419.69,0.00020309,2]
[321980811,1712671842369,-500.0,0.00020309,2]
[321980812,1712671842378,-500.0,0.00020309,2]
[321980813,1712671842387,-500.0,0.00020309,2]
[321980814,1712671842396,-500.0,0.00020309,2]
[321980815,1712671842406,-500.0,0.00020309,2]
[321980816,1712671842416,-500.0,0.00020309,2]
[321980817,1712671842425,-720.9,0.00020309,2]
[321980818,1712671842434,-500.0,0.00020309,2]
[321980819,1712671842443,-500.0,0.00020309,2]
[321980821,1712671842452,-500.0,0.00020309,2]
[321980822,1712671842461,-811.93,0.00020309,2]
[321980823,1712671842471,-514.11,0.00020309,2]
[321980825,1712671842480,-500.0,0.00020309,2]
[321980827,1712671842490,-500.0,0.00020309,2]
[321980829,1712671842499,-439.5274693,0.00020309,2]
[321980830,1712671842510,-500.0,0.00020309,2]
[321980831,1712671842519,-175.37803644,0.00020309,2]
[321980833,1712671842529,-500.0,0.00020309,2]
[321980834,1712671842538,-558.47,0.00020309,2]
[321980836,1712671842547,-500.0,0.00020309,2]
[321980838,1712671842556,-500.0,0.00020309,2]
[321980840,1712671842565,-500.0,0.00020309,2]
[321980841,1712671842575,-500.0,0.00020309,2]
[321980842,1712671842584,-500.0,0.00020309,2]
[321980843,1712671842594,-603.79,0.00020309,2]
[321980844,1712671842604,-500.0,0.00020309,2]
[321980845,1712671842614,-500.0,0.00020309,2]
[321980846,1712671842623,-523.71609132,0.00020309,2]
[321980847,1712671842632,-500.0,0.00020309,2]
[321980848,1712671842641,-500.0,0.00020309,2]
[321980849,1712671842651,-705.98,0.00020309,2]
[321980850,1712671842661,-500.0,0.00020309,2]
[321980851,1712671842670,-500.0,0.00020309,2]
[321980852,1712671842679,-226.2384359,0.00020309,2]
[321980853,1712671842688,-500.0,0.00020309,2]
[321980854,1712671842697,-500.0,0.00020309,2]
[321980855,1712671842707,-500.0,0.00020309,2]
[321980856,1712671842718,-500.0,0.00020309,2]
[321980857,1712671842727,-664.09,0.00020309,2]
[321980858,1712671842736,-644.95,0.00020309,2]
[321980859,1712671842745,-505.95,0.00020309,2]
[321980860,1712671842754,-545.38,0.00020309,2]
[321980861,1712671842763,-500.0,0.00020309,2]
[321980862,1712671842773,-500.0,0.00020309,2]
[321980863,1712671842783,-396.4841056,0.00020309,2]
[321980864,1712671842792,-500.0,0.00020309,2]
[321980865,1712671842801,-982.71,0.00020309,2]
[321980866,1712671842810,-814.51,0.00020309,2]
[321980867,1712671842819,-500.0,0.00020309,2]
[321980868,1712671842828,-500.0,0.00020309,2]
[321980869,1712671842837,-500.0,0.00020309,2]
[321980870,1712671842847,-380.35,0.00020309,2]
[321980871,1712671842856,-500.0,0.00020309,2]
[321980872,1712671842865,-500.0,0.00020309,2]
[321980873,1712671842874,-245.13026521,0.00020309,2]
[321980874,1712671842889,-205.39116824,0.00020309,2]
[321980875,1712671842899,-500.0,0.00020309,2]
[321980876,1712671842908,-500.0,0.00020309,2]
[321980877,1712671842918,-500.0,0.00020309,2]
[321980878,1712671842928,-500.0,0.00020309,2]
[321980879,1712671842937,-500.0,0.00020309,2]
[321980880,1712671842946,-449.53792193,0.00020309,2]
[321980885,1712671843781,-500.0,0.00019374,2]
[321980886,1712671843794,-500.0,0.00019648,2]
[321980887,1712671843806,-500.0,0.00019671,2]
[321980888,1712671843816,-500.0,0.00019671,2]
[321980889,1712671843826,-422.82403884,0.00019671,2]
[321980890,1712671843838,-500.0,0.00019922,2]
[321980891,1712671843849,-2415.57943317,0.00020007,2]
[321980892,1712671843865,-5084.42056683,0.00020007,2]
[321980893,1712671843877,-2404.78,0.00020107,2]
[321980894,1712671843888,-500.0,0.00020196,2]
[321980895,1712671843900,-68.29207807,0.00020309,2]
[321980896,1712671843912,-500.0,0.00020309,2]
[321980897,1712671843923,-420.03,0.00020309,2]
[321980898,1712671843935,-500.0,0.00020309,2]
[321980899,1712671843946,-500.0,0.00020309,2]
[321980900,1712671843958,-602.12,0.00020309,2]
[321980901,1712671843969,-500.0,0.00020309,2]
[321980902,1712671843979,-500.0,0.00020309,2]
[321980903,1712671843990,-500.0,0.00020309,2]
[321980904,1712671844002,-500.0,0.00020309,2]
[321980905,1712671844014,-500.0,0.00020309,2]
[321980906,1712671844027,-461.5,0.00020309,2]
[321980907,1712671844040,-500.0,0.00020309,2]
[321980908,1712671844052,-500.0,0.00020309,2]
[321980909,1712671844063,-500.0,0.00020309,2]
[321980910,1712671844076,-684.03,0.00020309,2]
[321980911,1712671844088,-500.0,0.00020309,2]
[321980912,1712671844099,-43.79577261,0.00020309,2]
[321980913,1712671844113,-456.20422739,0.00020309,2]
[321980914,1712671844123,-500.0,0.00020309,2]
[321980915,1712671844133,-500.0,0.00020309,2]
[321980916,1712671844146,-500.0,0.00020309,2]
[321980917,1712671844158,-500.0,0.00020309,2]
[321980918,1712671844170,-696.96,0.00020309,2]
[321980919,1712671844184,-500.0,0.00020309,2]
[321980920,1712671844198,-428.13439793,0.00020309,2]
[321980921,1712671844354,-71.86560207,0.00020309,2]
[321980922,1712671844364,-500.0,0.00020309,2]
[321980923,1712671844375,-1016.9,0.00020309,2]
[321980924,1712671844386,-500.0,0.00020309,2]
[321980925,1712671844397,-500.0,0.00020309,2]
[321980926,1712671844410,-500.0,0.00020309,2]
[321980927,1712671844421,-500.0,0.00020309,2]
[321980928,1712671844433,-1403.34,0.00020309,2]
[321980929,1712671844447,-500.0,0.00020309,2]
[321980930,1712671844460,-478.61919793,0.00020309,2]
[321980931,1712671844476,-361.87080207,0.00020309,2]
[321980932,1712671844489,-837.38,0.00020309,2]
[321980933,1712671844501,-500.0,0.00020309,2]
[321980934,1712671844512,-500.0,0.00020309,2]
[321980935,1712671844522,-500.0,0.00020309,2]
[321980936,1712671844533,-500.0,0.00020309,2]
[321980937,1712671844544,-500.0,0.00020309,2]
[321980938,1712671844557,-601.31,0.00020309,2]
[321980939,1712671844576,-500.0,0.00020309,2]
[321980940,1712671844587,-390.7934163,0.00020309,2]
[321980941,1712671844601,-109.2065837,0.00020309,2]
[321980942,1712671844613,-500.0,0.00020309,2]
[321980943,1712671844625,-590.79107523,0.00020309,2]
[321980944,1712671844639,-1199.97998366,0.00020309,2]
[321980945,1712671844654,-1199.99342736,0.00020309,2]
[321980946,1712671844830,-250.0,0.00019388,2]
[321980947,1712671844841,-5701.80551375,0.00020309,2]
[321980948,1712671844853,-2171.14,0.00020309,2]
[321980949,1712671844865,-500.0,0.00020309,2]
[321980950,1712671844877,-500.0,0.00020309,2]
[321980951,1712671844889,-500.0,0.00020309,2]
[321980952,1712671844900,-3063.02,0.00020309,2]
[321980953,1712671844912,-500.0,0.00020309,2]
[321980954,1712671844923,-500.0,0.00020309,2]
[321980955,1712671844935,-27616.42,0.00020309,2]
[321980956,1712671844947,-500.0,0.00020309,2]
[321980957,1712671844958,-528.58,0.00020309,2]
[321980958,1712671844970,-2395.05,0.00020309,2]
[321980959,1712671844981,-500.0,0.00020309,2]
[321980960,1712671844993,-500.0,0.00020309,2]
[321980961,1712671845006,-500.0,0.00020309,2]
[321980962,1712671845017,-500.0,0.00020309,2]
[321980963,1712671845028,-1954.83,0.00020309,2]
[321980964,1712671845039,-500.0,0.00020309,2]
[321980965,1712671845050,-500.0,0.00020309,2]
[321980966,1712671845061,-2802.45,0.00020309,2]
[321980967,1712671845072,-500.0,0.00020309,2]
[321980968,1712671845084,-500.0,0.00020309,2]
[321980969,1712671845094,-500.0,0.00020309,2]
[321980970,1712671845105,-500.0,0.00020309,2]
[321980971,1712671845117,-500.0,0.00020309,2]
[321980972,1712671845128,-548.02841832,0.00020309,2]
[321980973,1712671845139,-500.0,0.00020309,2]
[321980974,1712671845150,-500.0,0.00020309,2]
[321980975,1712671845161,-500.0,0.00020309,2]
[321980976,1712671845172,-680.91,0.00020309,2]
[321980977,1712671845184,-500.0,0.00020309,2]
[321980978,1712671845197,-500.0,0.00020309,2]
[321980979,1712671845209,-500.0,0.00020309,2]
[321980980,1712671845223,-500.0,0.00020309,2]
[321980981,1712671845234,-507.9386942,0.00020309,2]
[321980982,1712671845245,-500.0,0.00020309,2]
[321980983,1712671845257,-500.0,0.00020309,2]
[321980984,1712671845268,-500.0,0.00020309,2]
[321980985,1712671845279,-500.0,0.00020309,2]
[321980986,1712671845290,-638.98,0.00020309,2]
[321980987,1712671845302,-500.0,0.00020309,2]
[321980988,1712671845313,-500.0,0.00020309,2]
[321980989,1712671845323,-543.19207724,0.00020309,2]
[321980990,1712671845334,-500.0,0.00020309,2]
[321980991,1712671845345,-500.0,0.00020309,2]
[321980992,1712671845355,-500.0,0.00020309,2]
[321980993,1712671845366,-500.0,0.00020309,2]
[321980994,1712671845377,-500.0,0.00020309,2]
[321980995,1712671845387,-500.0,0.00020309,2]
[321980996,1712671845398,-500.0,0.00020309,2]
[321980997,1712671845409,-500.0,0.00020309,2]
[321980998,1712671845419,-500.0,0.00020309,2]
[321980999,1712671845430,-500.0,0.00020309,2]
[321981000,1712671845440,-500.0,0.00020309,2]
[321981001,1712671845451,-500.0,0.00020309,2]
[321981002,1712671845461,-506.69161251,0.00020309,2]
[321981003,1712671845475,-500.0,0.00020309,2]
[321981005,1712671845485,-500.0,0.00020309,2]
[321981006,1712671845496,-500.0,0.00020309,2]
[321981008,1712671845506,-506.31857459,0.00020309,2]
[321981009,1712671845516,-500.0,0.00020309,2]
[321981010,1712671845527,-500.0,0.00020309,2]
[321981011,1712671845538,-500.0,0.00020309,2]
[321981012,1712671845549,-500.0,0.00020309,2]
[321981013,1712671845560,-500.0,0.00020309,2]
[321981014,1712671845572,-500.0,0.00020309,2]
[321981015,1712671845583,-500.0,0.00020309,2]
[321981016,1712671845594,-443.28065123,0.0002031,2]
[321981017,1712671845604,-1717.76,0.0002031,2]
[321981018,1712671845615,-500.0,0.0002031,2]
[321981019,1712671845625,-789.86,0.0002031,2]
[321981021,1712671845637,-1241.59,0.0002031,2]
[321981023,1712671845648,-844.69,0.0002031,2]
[321981026,1712671845658,-1207.01,0.0002031,2]
[321981029,1712671845669,-900.77,0.0002031,2]
[321981032,1712671845680,-500.0,0.0002031,2]
[321981035,1712671845690,-1158.6,0.0002031,2]
[321981038,1712671845700,-1274.2,0.0002031,2]
[321981041,1712671845711,-1900.08,0.0002031,2]
[321981046,1712671845722,-303.60892,0.0002031,2]
[321981049,1712671845733,-500.0,0.0002031,2]
[321981051,1712671845743,-500.0,0.0002031,2]
[321981053,1712671845753,-630.41,0.0002031,2]
[321981055,1712671845764,-875.65,0.0002031,2]
[321981057,1712671845775,-914.54,0.0002031,2]
[321981059,1712671845785,-500.0,0.0002031,2]
[321981060,1712671845795,-1068.63,0.0002031,2]
[321981061,1712671845806,-1897.04,0.0002031,2]
[321981062,1712671845816,-1274.11,0.0002031,2]
[321981063,1712671845827,-785.14,0.0002031,2]
[321981064,1712671845838,-831.25,0.0002031,2]
[321981065,1712671845848,-798.01,0.0002031,2]